Cogmind - Beta 15 --- EXPLORER MODE // 2025.07.17 @ 13:12:11 Player: SammySkye Result: Destroyed by S-10 Pest with Light Assault Rifle Performance ------------- Evolutions (0) 0 Regions Visited (1) 200 Robots Destroyed (5) 25 Value Destroyed (104) 104 Prototype IDs (2) 40 Alien Tech Used (0) 0 Bonus (0) 0 TOTAL SCORE: 369 Bonus ------- None Cogmind --------- Core Integrity 0/250 Matter 247/500 Energy 100/100 System Corruption 0% Temperature Cool (0) Movement Core (400) Ox7 Location -10/Materials Parts ------- > --- POWER (1) -------- (None) > --- PROPULSION (2) --- (None) > --- UTILITY (3) ------ Large Storage Unit High-capacity Matter Pod > --- WEAPON (2) ------- (None) > --- INVENTORY (15) --- Heat Sink Peak State ------------ > --- POWER ------------ Ion Engine > --- PROPULSION ------- Wheel Wheel > --- UTILITY ---------- Medium Storage Unit Medium Storage Unit High-capacity Matter Pod > --- WEAPON ----------- Beam Rifle Beam Rifle > --- INVENTORY -------- Heat Sink Light Armor Plating Assault Rifle Light Assault Rifle [Rating: 10] Favorites ----------- Power Ion Engine Engine Ion Engine Propulsion Wheel Wheel Wheel Hover Unit Backup Propulsion I Utility High-capacity Matter Pod Device Heat Sink Storage High-capacity Matter Pod Processor Targeting Computer Protection Light Armor Plating Weapon Beam Rifle Energy Gun Beam Rifle Ballistic Gun Assault Rifle Build | -11 -10 ------- Run | Yrd Mat Slots Evolved 1 | . 1 Power . | . . Propulsion . | . . Utility 1 | . 1 Weapon . | . . Parts Attached 18 | 8 10 Power 2 | 1 1 Engine 2 | 1 1 Core . | . . Reactor . | . . Propulsion 2 | 2 . Treads . | . . Leg . | . . Wheel 2 | 2 . Hover . | . . Flight . | . . Utility 9 | 2 7 Device 1 | . 1 Storage 4 | . 4 Processor 2 | 1 1 Hackware . | . . Protection 2 | 1 1 Artifact . | . . Weapon 5 | 3 2 Energy Gun 3 | 1 2 Energy Cannon . | . . Ballistic Gun 2 | 2 . Ballistic Cannon . | . . Launcher . | . . Special Weapon . | . . Impact Weapon . | . . Slashing Weapon . | . . Piercing Weapon . | . . Special Melee Weapon . | . . Unidentified Prototypes . | . . Parts Lost 7 | . 7 Power 1 | . 1 Propulsion 3 | . 3 Utility 1 | . 1 Weapon 2 | . 2 Highest Loss Streak 5 | . 5 To Critical Strikes 1 | . 1 Average Backups 2 | 3 1 Power . | . . Propulsion . | 1 . Utility 1 | . 1 Weapon . | 1 . Tool/Special . | . . Unused Backups 3 | 2 1 Power . | . . Propulsion 3 | 2 1 Utility . | . . Weapon . | . . Tool/Special . | . . Average Slot Usage (%) 87 | . 87 Engine 11 | . 11 Wheel 20 | . 20 Hover 1 | . 1 Storage 24 | . 24 Processor 3 | . 3 Protection 3 | . 3 Energy Gun 10 | . 10 Ballistic Gun 11 | . 11 Peak Build Rating 10 | 7 10 Average Rating 6 | 3 7 On Entrance 3 | . 7 Naked Turns . | . . Heaviest Build 38 | 9 38 Greatest Support 20 | 20 20 Greatest Overweight (x) 9 | . 9 Average Overweight (x) . | . 1 Largest Inventory Capacity 15 | 5 15 Average Capacity 9 | 5 11 Most Carried 5 | 5 5 Average Carried 2 | 3 1 Final Capacity 15 | 5 15 Final Carried 5 | 5 1 Class Distribution -------------------- 100% | Hacker-Mutant Dominant Class ---------------- Hacker-Mutant | -10/Materials Resources | -11 -10 ----------- Run | Yrd Mat Matter Collected 380 | 278 102 Remotely . | . . Salvage Created 131 | 40 91 Parts 6 | 2 4 Haulers Intercepted . | . . Recyclers Shooed . | . . Parts Field Recycled . | . . Retrieved Matter . | . . Parts Self-Destructed . | . . Prevented . | . . Kills | -11 -10 ------- Run | Yrd Mat Combat Hostiles Destroyed 4 | 1 3 Guns 4 | 1 3 Classes Destroyed 3 | 1 2 Watcher 1 | . 1 Swarmer 2 | . 2 Grunt 2 | 1 1 Best Kill Streak 4 | 1 4 Combat Bots Only 3 | 1 3 Max Kills in Single Turn 2 | 1 2 Gunslinging 1 | . 1 Exploded . | . . Melee . | . . Uniques/NPCs Destroyed . | . . Combat | -11 -10 -------- Run | Yrd Mat Hostile Shots Fired 158 | 11 147 Missed 27 | 5 22 Hits 131 | 6 125 Projectile 131 | 6 125 Critical Strikes 2 | . 2 Damage Taken 756 | 42 714 Core 252 | 7 245 Absorbed by Shields . | . . Ignored by Resistances 471 | 29 442 Core Remaining (%) 97 | 97 . Volleys Fired 21 | 10 11 Largest 2 | 2 2 Hottest 112 | 50 112 Shots Fired 31 | 12 19 Gun 31 | 12 19 Cannon . | . . Launcher . | . . Special . | . . Kinetic 4 | 4 . Thermal 27 | 8 19 Explosive . | . . Electromagnetic . | . . Robot Hit Streak 22 | 12 22 Robot Miss Streak 2 | . 2 Penetration Max . | . . Secondary Targets 2 | . 2 Max Gunslinging Chain 1 | . 1 Shots Hit Robots 29 | 12 17 Core Hits 8 | 2 6 Critical Kills . | . . Critical Parts Destroyed . | . . Critical Strikes 5 | 2 3 Burn 5 | 2 3 Melee Attacks . | . . Impact . | . . Slashing . | . . Piercing . | . . Sneak Attacks . | . . Combat Hostiles . | . . Follow-up Attacks . | . . Damage Inflicted 396 | 146 250 Guns 396 | 146 250 Cannons . | . . Explosions . | . . Melee . | . . Ramming . | . . Kinetic 46 | 46 . Thermal 350 | 100 250 Explosive . | . . Electromagnetic . | . . Impact . | . . Slashing . | . . Piercing . | . . Highest Corruption . | . . Average Corruption . | . . Corruption Purged . | . . Corruption Blocked . | . . Overload Shots . | . . Overflow Damage . | . . Projectiles . | . . Explosions . | . . Melee . | . . Knockbacks . | . . Impact . | . . Kinetic . | . . Secondary . | . . Self-Inflicted Damage . | . . Shots . | . . Rammed . | . . Targets Rammed . | . . Kicked . | . . Crushed . | . . Highest Temperature 540 | 68 540 Average Temperature 191 | 26 260 Received Heat Transfer 141 | 36 105 Effects 12 | . 12 Shutdowns 2 | . 2 Energy Bleed 1 | . 1 Interference 2 | . 2 Matter Decay 2 | . 2 Damage (major) 2 | . 2 Damage (core) 3 | . 3 Siege Activations . | . . Martial Activations . | . . Shielding Activations . | . . Robots Disrupted . | . . Combat Hostiles . | . . Robots Corrupted . | . . Combat Hostiles . | . . Parts Fried . | . . Impact Corruptions . | . . Robots Melted . | . . Combat Hostiles . | . . Parts Melted 2 | . 2 Heat Transferred 1295 | 444 851 Parts Sabotaged . | . . Parts Stolen . | . . Parts Stripped . | . . Power Chain Reactions . | . . Alert | -11 -10 ------- Run | Yrd Mat Maximum Alert Level . | . . Low Security (%) 100 | 100 100 Level 1 . | . . Level 2 . | . . Level 3 . | . . Level 4 . | . . Level 5 . | . . High Security . | . . Max Security . | . . Peak Influence 62 | 20 62 Initial . | . . Average 7 | 1 10 Influence Increases 112 | 20 92 Destroy 0b10 Robot/C 80 | 20 60 Destroy 0b10 Robot/NC 5 | . 5 Destroy Leader 12 | . 12 Lose Combat Pursuer 15 | . 15 Influence Decreases 112 | 20 92 Time Decay 80 | 20 60 Lost Part 32 | . 32 Squads Dispatched . | . . Investigation . | . . Extermination . | . . Reinforcement . | . . Assault . | . . Garrison . | . . Intercept . | . . Searches Triggered . | . . Construction Impeded . | . . Haulers Reinforced . | . . Active Scanning Responses . | . . Cargo Convoy Interrupts . | . . Stealth | -11 -10 --------- Run | Yrd Mat Distress Signals 1 | . 1 Communications Jammed . | . . Distress Signals . | . . Times Spotted 11 | 1 10 Peak Tracking Total 8 | 1 8 Tactical Retreats 1 | . 1 Traps | -11 -10 ------- Run | Yrd Mat Traps Triggered . | . . Indirectly . | . . Trap Hack Attempts . | . . Triggered . | . . Disarmed . | . . Reprogrammed . | . . Reused . | . . Traps Extracted . | . . Installed . | . . Triggered . | . . Machines | -11 -10 ---------- Run | Yrd Mat Machines Disabled . | . . Max in Single Turn . | . . Machines Repaired . | . . Machines Dismantled . | . . Machines Sabotaged . | . . Overloaded Fab Kills . | . . Hacking | -11 -10 --------- Run | Yrd Mat Machines Accessed 3 | . 3 Terminals 1 | . 1 Fabricators . | . . Repair Stations 1 | . 1 Recycling Units 1 | . 1 Scanalyzers . | . . Garrison Access . | . . Total Hacks 9 | . 9 Successful 7 | . 7 Failed 2 | . 2 Catastrophic . | . . Database Lockouts . | . . Manual . | . . Terminals 3 | . 3 Fabricators . | . . Repair Stations 2 | . 2 Recycling Units 4 | . 4 Scanalyzers . | . . Garrison Access . | . . Terminal Hacks 2 | . 2 Prototype ID Bank 1 | . 1 Zone Layout 1 | . 1 Fabricator Hacks . | . . Repair Station Hacks 1 | . 1 Refit 1 | . 1 Recycling Unit Hacks 4 | . 4 Recycle Component 2 | . 2 Process 1 | . 1 Retrieve Matter 1 | . 1 Scanalyzer . | . . Garrison Access Hacks . | . . Unauthorized Hacks . | . . Terminals . | . . Fabricators . | . . Repair Stations . | . . Recycling Units . | . . Scanalyzers . | . . Garrison Access . | . . Data Cores Recovered . | . . Used . | . . Hacking Detections 3 | . 3 Full Trace Events . | . . Feedback Events . | . . Feedback Blocked . | . . Robot Schematics Acquired . | . . Robots Built . | . . Authchips . | . . Time . | . . Total Robot Build Rating . | . . Part Schematics Acquired . | . . Parts Built . | . . Authchips . | . . Time . | . . Total Part Build Rating . | . . Parts Repaired . | . . Time . | . . Parts Recycled 2 | . 2 Recycled Matter 64 | . 64 Retrieved Matter 64 | . 64 Retrieved Components . | . . Parts Scanalyzed . | . . Part Schematics Acquired . | . . Parts Damaged . | . . Bothacking | -11 -10 ------------ Run | Yrd Mat Used RIF Installer . | . . Robots Hacked . | . . Non-combat . | . . Combat . | . . Robot Hacks Applied . | . . Relay Couplers Released . | . . Fabnet Peak Effective % . | . . Robots Rewired . | . . Allies Hacked . | . . Hacks Repelled . | . . Allies | -11 -10 -------- Run | Yrd Mat Total Allies . | . . Largest Group . | . . Highest-Rated Group . | . . Highest-Rated Ally . | . . Total Orders . | . . Ally Attacks . | . . Total Damage . | . . Kills . | . . Allies Corrupted . | . . Allies Melted . | . . Intel | -11 -10 ------- Run | Yrd Mat Active Infowar (turns) . | . . Robot Analysis Total . | . . Derelict Logs Recovered . | . . Drone Launches . | . . Drone Recoveries . | . . Exploration | -11 -10 ------------- Run | Yrd Mat Turns Passed 398 | 121 277 Spaces Moved 279 | 101 178 Core 29 | 21 8 Treads . | . . Legs . | . . Wheels 243 | 80 163 Hover 7 | . 7 Flight . | . . Fastest Speed 50 | 50 80 Average Speed 105 | 73 124 Slowest Speed 500 | 80 500 Overloaded Moves . | . . Propulsion Burnouts . | . . Robots Hopped . | . . Potential Cave-ins . | . . Cave-ins Triggered . | . . Exploration Rate (%) 18 | 6 31 Regions Visited 1 Branch Regions . Pre-discovered Areas . | . . Known Exits Taken 1 | 1 . Unknown Exits Taken . | . . Scrap Searched . | . . Spaces Dug . | . . Terrain Destroyed . | . . Melee . | . . Projectile . | . . AOE . | . . Terrain Rammed . | . . Walls Destroyed . | . . Machines Disabled . | . . Actions | -11 -10 --------- Run | Yrd Mat Total 351 | 135 216 Wait 1 | 1 . Move 278 | 100 178 Hop . | . . Pick Up 20 | 12 8 Fast Attach 2 | 2 . Attach 10 | 6 4 Detach 1 | 1 . Swap 7 | 1 6 Drop 11 | 2 9 Fire 21 | 10 11 Melee . | . . Ram . | . . Kick . | . . Crush . | . . Escape Stasis . | . . Rewire . | . . Trap . | . . Miscellaneous . | . . Route ------- -11/Scrapyard -10/Materials History --------- Turn | Location | Event 2 | -11/Scrapyard | Met Revision 17 57 | -11/Scrapyard | Identified exit to Materials 57 | -11/Scrapyard | Discovered exit to Materials (range 8) 122 | -11/Scrapyard | Entered Materials 122 | -10/Materials | Evolved 1 slot: Utility x1 303 | -10/Materials | Core integrity fell below 50% 318 | -10/Materials | Build established: Hacker-Mutant 379 | -10/Materials | Core integrity fell below 20% 399 | -10/Materials | Destroyed by S-10 Pest with Light Assault Rifle Last Messages --------------- Rifle. 00314_ Wheel destroyed. 00315_ Acquired 15 matter. 00330_ Connecting with Repair Station... >>Refit Scanning configuration... Attaching: Backup Propulsion I x1 Different forms of propulsion may not be used simultaneously, Wheel automatically deactivated. 00354_ Beam Rifle destroyed. 00360_ Wheel destroyed. 00362_ Beam Rifle destroyed. 00362_ K-01 Serf cleans the Repair Station. 00363_ Backup Propulsion I destroyed. 00365_ K-01 Serf cleans the Repair Station. 00378_ Critical hit (Destroy). 00378_ Ion Engine destroyed. [Achievement: First Step to Greatness] Map ----- +----------------------------------------------------+ | ??????????????????????????????????????? | | ??????????????????????????????????????? | | ??????????????????????????????????????? | | ??????????????????????????????????????? | | ??????????????????????????????????????? | | ?????????????????????????????? ???? | | ???????????????????????????? !=?? | | ???????????????????????????? != | | ???????????????????????????? == | | ???????????????? ???????" | | ????????????????# ""?????"" | | ????????????????# ?????" | | ????????????????+ ?????? | | ????????????????# ??????? % | | ????????????????# ???????? | | ????????????????# #????????# | | ????????????????# #????????# | | ????????????????# #????????# | | ????????????????# #????????# ?? | | ???????????###??# #????????# ???? | | ??????#????#T"??# #????????# ####?? | | ??????# #### "### ########## !##? | | ??????# !#? | | ??????+ !#? | | ??????# s #? | | ???????##+## @##/############ % !#? | | ???????????# # #??????# !##? | | ???????????# # """ #??????### #####? | | ???????????# # "R" #????????# #????? | | ???????????+ # " " #????##### #?#### | | ???????????# # #????#[[ #?# | | ???????????# s#[ #????#[[ #?# | | ???????????# ###+####????#[[ ### "" | | ???????????# #?# #???????#[[ # "" | | ???????????# ??# #???????#!! # "" | | ???????????# ??# #???????#!! + | | ???????????# ??# #???????##### ###+ | | ??????????? ?? ???????????# #?# | | ??????????? ?? ?????####### #?# | | ??????????? ?? ?????# # #?# | | ???????????? ?? ?????# """ # #?# | | ????????????????? ?????# """ # #?# | | ????????????????? ?????# """ # ### | | ????????????????? ?????# # | | ????????????????? ?????# """ + | | ????????????????? ?????# """ # """ | | ?????????????????????????# """ # """ | | ?????????????????????????# # """ | | ?????????????????????????# # | | ?????????????????????????# ! # | +----------------------------------------------------+ Best States ------------- Heat Dissipation 35 Energy Generation 10 Energy Capacity 250 Matter Stores 305 Matter Capacity 500 Sight Range 16 Terrain Scan Density 10 Armor Coverage 150 Resistance: KI 35 Resistance: TH 35 Resistance: EX 35 Resistance: EM 35 Resistance: I 35 Resistance: S 35 Resistance: P 35 Evasion (%) 50 Targeting Accuracy 10 Offensive Hacking 20 Item Schematics ----------------- None Robot Schematics ------------------ None Fabricated ------------ Nothing Repaired ---------- Nothing Alien Tech Used ----------------- None Achievements -------------- Crack Shot First Step to Greatness Challenges ------------ None Game ------ Seed WarlordDisposableDetonator Manual? 0 Play Time 00:21:39 Cumulative 0.3 hours Start 2025.07.17 @ 12:49:15 End 2025.07.17 @ 13:12:11 Sessions 1 Manual Loads 0 Difficulty Explorer Special Mode None Game No. 1 Rogue 0 Adventurer 0 Explorer 1 Win Type - Total 0 Types 0/0/0/0/0/0/0/0/0/0 Lore% 0 Gallery% 1 Achievement% 0 Wizard Run 0 Options --------- Layout 1 ASCII 0 Keyboard 0 Movement Mouse Keybinds 0 Fullscreen 1 Font 24/Smallcaps Map View 50x35 Zoom Use 0% Tactical HUD 1 Map Filters NONE Filters NONE Steam 1 RUN: 950c3f59-8d02-4cf9-aebc-7d33bb7d48d4